Cogmind - Beta 12 @@@ ROGUE MODE // 2023.03.03 @ 23:22:59 Player: Wayland Result: Destroyed self with Grenade Launcher Performance ------------- Evolutions (0) 0 Regions Visited (2) 400 Robots Destroyed (8) 40 Value Destroyed (189) 189 Prototype IDs (0) 0 Alien Tech Used (0) 0 Bonus (0) 0 TOTAL SCORE: 629 Bonus ------- None Cogmind --------- Core Integrity 0/250 Matter 205/300 Energy 84/100 System Corruption 5% Temperature Cool (5) Movement Core (100) Ox1 Location -10/Mines Parts ------- > --- POWER (1) -------- (None) > --- PROPULSION (2) --- (None) > --- UTILITY (2) ------ Small Storage Unit > --- WEAPON (2) ------- (None) > --- INVENTORY (8) ---- Light Treads Light Treads Aluminum Leg Small Laser Peak State ------------ > --- POWER ------------ Light Ion Engine > --- PROPULSION ------- Compact Wheel Compact Wheel > --- UTILITY ---------- Heat Sink Small Storage Unit > --- WEAPON ----------- Assault Rifle Light Assault Rifle > --- INVENTORY -------- Light Ion Engine Light Treads Light Treads Aluminum Leg Aluminum Leg EM Pulse Gun Grenade Launcher [Rating: 7] Favorites ----------- Power Light Ion Engine Engine Light Ion Engine Propulsion Compact Wheel Leg Aluminum Leg Wheel Compact Wheel Utility Small Storage Unit Device Heat Sink Storage Small Storage Unit Weapon Light Assault Rifle Energy Gun EM Pulse Gun Ballistic Gun Light Assault Rifle Launcher Grenade Launcher Build | -11 -10 -10 ------- Run | Jun Mat Min Slots Evolved . | . . . Power . | . . . Propulsion . | . . . Utility . | . . . Weapon . | . . . Parts Attached 12 | 4 4 4 Power 2 | . 1 1 Engine 2 | . 1 1 Core . | . . . Reactor . | . . . Propulsion 3 | 2 . 1 Treads . | . . . Leg 1 | . . 1 Wheel 2 | 2 . . Hover . | . . . Flight . | . . . Utility 2 | 1 1 . Device 1 | . 1 . Storage 1 | 1 . . Processor . | . . . Hackware . | . . . Protection . | . . . Artifact . | . . . Weapon 5 | 1 2 2 Energy Gun 1 | . . 1 Energy Cannon . | . . . Ballistic Gun 2 | 1 1 . Ballistic Cannon . | . . . Launcher 2 | . 1 1 Special Weapon . | . . . Impact Weapon . | . . . Slashing Weapon . | . . . Piercing Weapon . | . . . Special Melee Weapon . | . . . Unidentified Prototypes . | . . . Parts Lost 10 | . . 10 Power 2 | . . 2 Propulsion 3 | . . 3 Utility 1 | . . 1 Weapon 4 | . . 4 Highest Loss Streak 9 | . . 9 To Critical Strikes . | . . . Average Slot Usage (%) 79 | . 82 78 Engine 11 | . 10 12 Wheel 19 | . 28 13 Device 8 | . 3 12 Storage 14 | . 14 14 Ballistic Gun 23 | . 24 23 Launcher 1 | . 1 . Naked Turns . | . . . Heaviest Build 12 | 6 12 12 Greatest Support 32 | 32 32 32 Greatest Overweight (x) 3 | . . 3 Average Overweight (x) . | . . . Largest Inventory Capacity 8 | 8 8 8 Average Capacity 7 | 6 8 8 Most Carried 8 | 8 8 8 Average Carried 7 | 4 7 7 Final Capacity 8 | 8 8 8 Final Carried 8 | 8 8 4 Class Distribution -------------------- 100% | Mutant Dominant Class ---------------- Mutant | -10/Materials Mutant | -10/Mines Resources | -11 -10 -10 ----------- Run | Jun Mat Min Matter Collected 257 | 203 30 24 Remotely . | . . . Salvage Created 163 | . 80 83 Parts 17 | . 6 11 Haulers Intercepted . | . . . Recyclers Shooed . | . . . Parts Field Recycled . | . . . Retrieved Matter . | . . . Parts Self-Destructed . | . . . Prevented . | . . . Kills | -11 -10 -10 ------- Run | Jun Mat Min Combat Hostiles Destroyed 8 | . 2 6 Guns 4 | . 2 2 AOE 4 | . . 4 Classes Destroyed 2 | . 1 1 Swarmer 4 | . . 4 Grunt 4 | . 2 2 Best Kill Streak 4 | . 2 4 Combat Bots Only 4 | . 2 4 Max Kills in Single Turn 2 | . 1 2 Gunslinging . | . . . Exploded 2 | . . 2 Melee . | . . . Uniques/NPCs Destroyed . | . . . Combat | -11 -10 -10 -------- Run | Jun Mat Min Damage Taken 1009 | . 68 941 Core 269 | . 12 257 Absorbed by Shields . | . . . Core Remaining (%) 100 | 100 . . Volleys Fired 16 | . 5 11 Largest 2 | . 2 2 Hottest 70 | . 40 70 Shots Fired 30 | . 10 20 Gun 27 | . 10 17 Cannon . | . . . Launcher 3 | . . 3 Special . | . . . Kinetic 26 | . 10 16 Thermal . | . . . Explosive 3 | . . 3 Electromagnetic 1 | . . 1 Robot Hit Streak 3 | . 3 3 Robot Miss Streak 5 | . 2 5 Penetration Max . | . . . Secondary Targets . | . . . Shots Hit Robots 15 | . 5 10 Core Hits 13 | . 4 9 Critical Kills . | . . . Critical Parts Destroyed . | . . . Critical Strikes . | . . . Melee Attacks . | . . . Impact . | . . . Slashing . | . . . Piercing . | . . . Sneak Attacks . | . . . Combat Hostiles . | . . . Follow-up Attacks . | . . . Damage Inflicted 419 | . 44 375 Guns 150 | . 44 106 Cannons . | . . . Explosions 269 | . . 269 Melee . | . . . Ramming . | . . . Kinetic 135 | . 44 91 Thermal . | . . . Explosive 269 | . . 269 Electromagnetic 15 | . . 15 Impact . | . . . Slashing . | . . . Piercing . | . . . Highest Corruption . | . . . Average Corruption . | . . . Corruption Purged . | . . . Corruption Blocked . | . . . Overload Shots . | . . . Overflow Damage 35 | . . 35 Projectiles . | . . . Explosions 35 | . . 35 Melee . | . . . Knockbacks . | . . . Impact . | . . . Kinetic . | . . . Secondary . | . . . Self-Inflicted Damage 68 | . . 68 Shots 3 | . . 3 Rammed . | . . . Targets Rammed . | . . . Kicked . | . . . Crushed . | . . . Highest Temperature 7 | . 6 7 Average Temperature 5 | . 6 5 Received Heat Transfer 177 | . 36 141 Siege Activations . | . . . Robots Corrupted . | . . . Combat Hostiles . | . . . Parts Fried . | . . . Impact Corruptions . | . . . Robots Melted . | . . . Combat Hostiles . | . . . Parts Melted . | . . . Heat Transferred . | . . . Parts Sabotaged . | . . . Parts Stolen . | . . . Parts Stripped . | . . . Power Chain Reactions . | . . . Missiles Intercepted . | . . . Alert | -11 -10 -10 ------- Run | Jun Mat Min Peak Influence 127 | . 65 127 Initial 25 | . . 25 Average 55 | . 33 88 Maximum Alert Level . | . . . Low Security (%) 100 | 100 100 100 Level 1 . | . . . Level 2 . | . . . Level 3 . | . . . Level 4 . | . . . Level 5 . | . . . High Security . | . . . Max Security . | . . . Squads Dispatched 1 | . 1 . Investigation . | . . . Extermination . | . . . Reinforcement 1 | . 1 . Assault . | . . . Garrison . | . . . Intercept . | . . . Searches Triggered . | . . . Construction Impeded . | . . . Haulers Reinforced . | . . . Active Scanning Responses . | . . . Cargo Convoy Interrupts . | . . . Stealth | -11 -10 -10 --------- Run | Jun Mat Min Distress Signals . | . . . Communications Jammed . | . . . Distress Signals . | . . . Times Spotted 13 | . 3 10 Peak Tracking Total 5 | . 2 5 Tactical Retreats 3 | . . 3 Traps | -11 -10 -10 ------- Run | Jun Mat Min Traps Triggered . | . . . Indirectly . | . . . Trap Hack Attempts . | . . . Triggered . | . . . Disarmed . | . . . Reprogrammed . | . . . Reused . | . . . Traps Extracted . | . . . Installed 2 | . . 2 Triggered . | . . . Machines | -11 -10 -10 ---------- Run | Jun Mat Min Machines Disabled . | . . . Max in Single Turn . | . . . Machines Repaired . | . . . Machines Sabotaged . | . . . Overloaded Fab Kills . | . . . Hacking | -11 -10 -10 --------- Run | Jun Mat Min Machines Accessed . | . . . Terminals . | . . . Fabricators . | . . . Repair Stations . | . . . Recycling Units . | . . . Scanalyzers . | . . . Garrison Access . | . . . Total Hacks . | . . . Successful . | . . . Failed . | . . . Catastrophic . | . . . Database Lockouts . | . . . Manual . | . . . Terminals . | . . . Fabricators . | . . . Repair Stations . | . . . Recycling Units . | . . . Scanalyzers . | . . . Garrison Access . | . . . Terminal Hacks . | . . . Fabricator Hacks . | . . . Repair Station Hacks . | . . . Recycling Unit Hacks . | . . . Scanalyzer . | . . . Garrison Access Hacks . | . . . Unauthorized Hacks . | . . . Terminals . | . . . Fabricators . | . . . Repair Stations . | . . . Recycling Units . | . . . Scanalyzers . | . . . Garrison Access . | . . . Data Cores Recovered . | . . . Used . | . . . Hacking Detections . | . . . Full Trace Events . | . . . Feedback Events . | . . . Feedback Blocked . | . . . Robot Schematics Acquired . | . . . Robots Built . | . . . Authchips . | . . . Time . | . . . Total Robot Build Rating . | . . . Part Schematics Acquired . | . . . Parts Built . | . . . Authchips . | . . . Time . | . . . Total Part Build Rating . | . . . Parts Repaired . | . . . Time . | . . . Parts Recycled . | . . . Recycled Matter . | . . . Retrieved Matter . | . . . Retrieved Components . | . . . Parts Scanalyzed . | . . . Part Schematics Acquired . | . . . Parts Damaged . | . . . Bothacking | -11 -10 -10 ------------ Run | Jun Mat Min Used RIF Installer . | . . . Robots Hacked . | . . . Non-combat . | . . . Combat . | . . . Robot Hacks Applied . | . . . Relay Couplers Released . | . . . Fabnet Peak Effective % . | . . . Robots Rewired . | . . . Allies Hacked . | . . . Hacks Repelled . | . . . Allies | -11 -10 -10 -------- Run | Jun Mat Min Total Allies . | . . . Largest Group . | . . . Highest-Rated Group . | . . . Highest-Rated Ally . | . . . Total Orders . | . . . Ally Attacks . | . . . Total Damage . | . . . Kills . | . . . Allies Corrupted . | . . . Allies Melted . | . . . Intel | -11 -10 -10 ------- Run | Jun Mat Min Robot Analysis Total . | . . . Derelict Logs Recovered 1 | . . 1 Drone Launches . | . . . Drone Recoveries . | . . . Exploration | -11 -10 -10 ------------- Run | Jun Mat Min Turns Passed 323 | 55 107 161 Spaces Moved 231 | 44 71 116 Core 16 | 7 . 9 Treads . | . . . Legs 2 | . . 2 Wheels 213 | 37 71 105 Hover . | . . . Flight . | . . . Fastest Speed 50 | 50 100 100 Average Speed 100 | 92 100 104 Slowest Speed 200 | 100 100 200 Overloaded Moves . | . . . Propulsion Burnouts . | . . . Robots Hopped . | . . . Cave-ins Triggered 1 | . . 1 Exploration Rate (%) 18 | 3 12 40 Regions Visited 2 Branch Regions 1 Pre-discovered Areas . | . . . Known Exits Taken . | . . . Unknown Exits Taken 2 | 1 1 . Scrap Searched . | . . . Spaces Dug . | . . . Terrain Destroyed 20 | . . 20 Melee . | . . . Projectile . | . . . AOE 20 | . . 20 Terrain Rammed . | . . . Walls Destroyed . | . . . Machines Disabled . | . . . Actions | -11 -10 -10 --------- Run | Jun Mat Min Total 294 | 58 97 139 Wait 22 | . 16 6 Move 229 | 43 70 116 Hop . | . . . Pick Up 13 | 11 2 . Fast Attach 2 | 1 1 . Attach 9 | 3 2 4 Detach . | . . . Swap 1 | . 1 . Drop . | . . . Fire 16 | . 5 11 Melee . | . . . Ram . | . . . Kick . | . . . Crush . | . . . Escape Stasis . | . . . Rewire . | . . . Trap 2 | . . 2 Miscellaneous . | . . . Route ------- -11/Junkyard -10/Materials -10/Mines History --------- Turn | Location | Event 33 | -11/Junkyard | Discovered new exit (range 15) 56 | -11/Junkyard | Entered Materials 65 | -10/Materials | Discovered new exit (range 12) 163 | -10/Materials | Entered Mines 263 | -10/Mines | Learned Materials machine intel 300 | -10/Mines | Found a hidden stash of uninstalled traps 304 | -10/Mines | Build established: Mutant 305 | -10/Mines | Core integrity fell below 50% 312 | -10/Mines | Core integrity fell below 20% 324 | -10/Mines | Crushed by falling debris 324 | -10/Mines | Destroyed self with Grenade Launcher Last Messages --------------- 00306_ Lgt. Ion Engine destroyed. 00308_ Heat Sink destroyed. 00311_ R-06 Scavenger collects Flight Unit. 00313_ R-06 Scavenger collects Lgt. Ion Engine. 00314_ Destroyed Flight Unit. 00314_ Destroyed Lgt. Ion Engine. 00314_ Destroyed Flight Unit. 00314_ S-10 Pest destroyed. 00314_ G-34 Mercenary destroyed. 00316_ Lgt. Ion Engine destroyed. 00321_ S-10 Pest destroyed. 00324_ The unstable cave ceiling collapses. 00324_ Crushed by falling debris. 00324_ EM Pulse Gun destroyed. 00324_ System corrupted by crushing effect (+1). 00324_ Aluminum Leg destroyed. 00324_ System corrupted by crushing effect (+4). 00324_ G-47 Trooper destroyed. 00324_ Grenade Launcher destroyed. 00324_ Destroyed Grenade Launcher. Map ----- +----------------------------------------------------+ | ????????????????? ????????????? | | ????????????????? ????????????? | | ????????????????? ????????????? | | ????????????????# #???????????? | | ????????????????# #???????????? | | ????????????????# #???????????? | | ????####???###??# #???????????? | | ???## #???# ?? #???????????? | | ??## #???# #??# #??????###??? | | ?## #??## ##?# #??### ### | | ?# #??# ### #?# | | ?# #??# ## ## | | ?# ####| | | ?# ##!%! | | ??# ## ### #####? | | ?## ### #???####????? | | ?# ## ##### #???????????? | | ?# #### ##?# #???????????? | | ?## ##?####??# ###???????????? | | ??# ###?????# #?????????????? | | #### * #?????# #?????????????? | | ? =[ #?????# #?????????????? | | ?# * #?????# #?????????????? | | ## %[[ #?????# #???????? # | | # [ ^&#?????# ### | | @##?????# | | # # #?????# ## #?????? | | ?### ##??#### ##? ##?????? | | ???#####??## ##?###???????? | | ??????????# #???????????? | | ??????????# #???????????? | | ??????????# #???????????? | | ??????????## # #???????????? | | ???????????## ## #???????????? | | ????????????# ?# #???????????? | | ???????????? ?# #???????????? | | ???????????###?# ##????####### | | ???????????????# #???## # | | ???????????????### #???# | | ?????????????????# ##### | | ?????????????????# ## | | ?????????????????# | | ?????????????????# # | | ?????????????????# ## | | ?????????????????# #? | | ?????????????????## ## | | ??????????????????## # | | ???????????????????###### | | ????????????????????????# | | ???????????????????????# | +----------------------------------------------------+ Best States ------------- Heat Dissipation 35 Energy Generation 10 Energy Capacity 125 Matter Stores 263 Matter Capacity 300 Sight Range 16 Terrain Scan Density 10 Evasion (%) 40 Item Schematics ----------------- None Robot Schematics ------------------ None Fabricated ------------ Nothing Alien Tech Used ----------------- None Achievements -------------- None Challenges ------------ None Game ------ Seed SwordWardroneShifter Manual? 0 Play Time 00:06:24 Cumulative 116.5 hours Start 2023.03.03 @ 23:18:12 End 2023.03.03 @ 23:22:59 Sessions 1 Manual Loads 0 Difficulty Rogue Special Mode None Game No. 174 Rogue 174 Adventurer 0 Explorer 0 Win Type - Total 2 Types 1/0/1/0/0/0/0/0/0 Lore% 49 Gallery% 57 Achievement% 50 Wizard Run 0 Options --------- ASCII 0 Keyboard 0 Movement Mouse Keybinds 0 Fullscreen 2 Font 24/Proggy Map View 113x50 Tactical HUD 1 Map Filters NONE Filters NONE Steam 1 RUN: 102aa391-ceaf-4c07-a8e7-987fdf7a31b3